bitfinex/quotes_SOLUSD_20250209
["timestamp","ask_amount","ask_price","bid_price","bid_amount"]
[1739132512274,0.03,200.28,200.27,28.52010836]
[1739132515683,0.03,200.28,200.27,28.39461836]
[1739132515880,0.03,200.28,200.27,18.67199415]
[1739132516056,0.03,200.28,200.26,13.41713421]
[1739132516478,0.03,200.28,200.25,9.59713421]
[1739132516680,0.03,200.28,200.26,3.82]
[1739132516988,0.03,200.28,200.25,9.59713421]
[1739132517167,0.03,200.28,200.24,3.82]
[1739132517556,0.03,200.28,200.26,20.0]
[1739132520877,0.03,200.28,200.25,20.0]
[1739132522686,0.03,200.28,200.19,0.18849]
[1739132522687,9.59713421,200.27,200.2,9.59713421]
[1739132522882,9.59713421,200.25,200.19,0.063]
[1739132523187,0.03,200.28,200.22,20.0]
[1739132523188,9.59713421,200.26,200.22,20.0]
[1739132524904,9.59713421,200.24,200.19,0.063]
[1739132525075,9.59713421,200.23,200.19,0.063]
[1739132526200,9.59713421,200.23,200.19,20.063]
[1739132526388,9.59713421,200.2,200.19,0.063]
[1739132526586,9.59713421,200.21,200.19,0.063]
[1739132526788,9.59713421,200.22,200.19,0.063]
[1739132528196,9.59713421,200.21,200.19,0.063]
[1739132528399,9.59713421,200.2,200.19,0.063]
[1739132531903,9.72262421,200.2,200.19,0.063]
[1739132534591,9.59713421,200.2,200.19,0.063]
[1739132538205,9.59713421,200.23,200.19,0.063]
[1739132538424,9.59713421,200.25,200.19,20.063]
[1739132539398,90.62713421,200.26,200.19,9.66013421]
[1739132540817,9.59713421,200.25,200.19,0.063]
[1739132541206,9.59713421,200.25,200.2,20.0]
[1739132541595,9.59713421,200.24,200.2,20.0]
[1739132543100,9.59713421,200.24,200.19,20.063]
[1739132543718,9.59713421,200.24,200.2,20.0]
[1739132545304,0.03,200.25,200.19,9.66013421]
[1739132547027,0.03,200.25,200.2,9.59713421]
[1739132547412,0.03,200.25,200.24,20.0]
[1739132548421,0.03,200.25,200.23,20.0]
[1739132549727,0.03,200.25,200.22,20.0]
[1739132550113,9.62713421,200.25,200.22,20.0]
[1739132550316,9.59713421,200.24,200.19,0.063]
[1739132550927,9.59713421,200.24,200.2,20.0]
[1739132551512,9.59713421,200.21,200.19,0.063]
[1739132551715,9.59713421,200.2,200.19,0.063]
[1739132552016,47.98567105,200.2,200.19,0.063]
[1739132552532,9.59713421,200.2,200.19,0.063]
[1739132554620,48.11116105,200.2,200.19,0.063]
[1739132554930,49.04809598,200.2,200.19,0.063]
[1739132560136,67.45494451,200.2,200.19,0.063]
[1739132560640,9.59713421,200.12,200.11,20.0]
[1739132561232,9.59713421,200.12,200.09,0.063]
[1739132561433,9.59713421,200.1,200.09,0.063]
[1739132569230,49.04846039,200.1,200.09,0.063]
[1739132569423,62.46030892,200.1,200.09,0.063]
[1739132571433,9.59713421,200.1,200.09,0.063]
[1739132573550,62.52300958,200.1,200.09,0.063]
[1739132573961,63.4604827,200.1,200.09,0.063]
[1739132574440,68.4579827,200.1,200.09,0.063]
[1739132581262,0.12549,200.06,199.98,0.063]
[1739132581461,9.59713421,200.0,199.98,0.063]
[1739132583037,9.59713421,200.01,199.98,0.063]
[1739132583360,81.0,200.04,199.98,9.66013421]
[1739132583540,81.0,200.04,199.99,9.59713421]
[1739132584851,81.0,200.04,200.01,20.0]
[1739132585838,90.59713421,200.04,199.98,0.063]
[1739132586966,81.0,200.08,199.98,0.063]
[1739132587153,90.59713421,200.08,200.04,20.0]
[1739132587360,9.59713421,200.06,200.04,20.0]
[1739132587650,9.59713421,200.05,199.98,0.063]
[1739132587961,9.59713421,200.04,199.98,0.063]
[1739132588168,9.59713421,200.06,200.01,20.0]
[1739132588347,90.59713421,200.07,200.0,9.59713421]
[1739132588665,81.0,200.07,200.01,9.59713421]
[1739132591351,81.0,200.07,200.04,0.063]
[1739132591664,9.59713421,200.05,200.04,0.063]
[1739132594462,81.0,200.07,200.04,0.063]
[1739132594670,81.03,200.1,200.04,0.063]
[1739132594865,90.59713421,200.09,200.05,20.0]
[1739132595367,9.59713421,200.07,200.04,0.063]
[1739132595745,9.59713421,200.05,200.04,0.063]
[1739132596462,90.59713421,200.09,200.04,20.063]
[1739132598269,81.0,200.08,200.04,20.063]
[1739132603170,90.59554055,200.08,200.04,0.063]
[1739132606872,81.0,200.08,200.05,20.0]
[1739132607775,90.59554055,200.08,200.05,20.0]
[1739132608176,90.59554055,200.08,200.04,0.063]
[1739132609648,9.59554055,200.06,200.04,0.063]
[1739132611771,81.0,200.07,200.04,0.063]
[1739132625295,9.59554055,200.06,200.04,0.063]
[1739132629685,9.59554055,200.05,200.04,0.063]
[1739132636796,9.06797075,200.05,200.04,0.063]
[1739132637890,81.0,200.06,200.04,0.063]
[1739132641223,9.59554055,200.08,200.04,0.063]
[1739132645830,81.0,200.07,200.04,0.063]
[1739132650634,81.03,200.07,200.04,0.063]
[1739132651740,81.0,200.06,200.04,0.063]
[1739132664150,81.03,200.06,200.04,0.063]
[1739132674131,9.72172856,200.05,200.04,0.063]
[1739132674328,24.19662362,200.05,200.04,0.063]
[1739132674833,25.19662362,200.05,200.04,0.063]
[1739132675137,26.19662362,200.05,200.04,0.063]
[1739132676461,31.19532362,200.05,200.04,0.063]
[1739132677063,0.25098,200.04,199.98,0.063]
[1739132677364,9.84721856,199.99,199.98,0.063]
[1739132678254,23.25906709,199.99,199.98,0.063]
[1739132679054,62.64402133,199.99,199.98,0.063]
[1739132679238,68.58224198,199.99,199.98,0.063]
[1739132679563,0.12549,199.96,199.92,0.063]
[1739132679748,9.59623856,199.93,199.92,0.063]
[1739132680666,9.59623856,199.97,199.92,0.063]
[1739132682763,9.59623856,199.99,199.93,9.59623856]
[1739132683074,9.59623856,200.0,199.93,9.59623856]
[1739132683379,9.59623856,200.0,199.96,20.0]
[1739132683754,9.59623856,200.01,199.96,20.0]
[1739132684337,9.59623856,200.03,199.97,9.59623856]
[1739132684543,9.59623856,200.04,199.97,9.59623856]
[1739132686762,9.59623856,200.02,199.96,9.59623856]
[1739132687276,9.59623856,200.02,199.93,3.68]
[1739132687277,9.59623856,200.0,199.98,20.0]
[1739132687752,9.59623856,200.0,199.97,20.0]
[1739132687953,9.59623856,200.0,199.97,20.063]
[1739132688264,9.59623856,199.99,199.97,0.063]
[1739132688451,9.59623856,200.0,199.97,0.063]
[1739132689157,9.59623856,200.01,199.97,0.063]
[1739132690571,9.59623856,200.01,199.97,20.063]
[1739132692571,9.59623856,200.02,199.97,0.063]
[1739132692991,9.59623856,200.01,199.97,0.063]
[1739132694089,9.59623856,200.0,199.97,0.063]
[1739132694295,9.59623856,199.98,199.97,0.063]
[1739132696288,61.39304133,199.98,199.97,0.063]
[1739132696468,66.39354133,199.98,199.97,0.063]
[1739132697792,69.33157937,199.98,199.92,0.063]
[1739132698084,9.59623856,199.93,199.92,0.063]
[1739132698288,10.5343695,199.93,199.92,0.063]
[1739132698996,28.94791803,199.93,199.92,0.063]
[1739132699483,10.5343695,199.93,199.92,0.063]
[1739132699798,9.59623856,199.93,199.92,0.063]
[1739132701898,10.53431426,199.93,199.92,0.063]
[1739132702783,9.59623856,199.93,199.92,0.063]
[1739132703883,9.72172856,199.93,199.92,0.063]
[1739132706295,10.78539067,199.93,199.92,0.063]
[1739132707702,24.1972392,199.93,199.92,0.063]
[1739132715905,29.1989392,199.93,199.92,0.063]
[1739132716102,30.1989392,199.93,199.92,0.063]
[1739132717517,25.1972392,199.93,199.92,0.063]
[1739132720416,24.1972392,199.93,199.92,0.063]
[1739132721711,29.1989392,199.93,199.92,0.063]
[1739132722813,24.1972392,199.93,199.92,0.063]
[1739132724514,25.1972392,199.93,199.92,0.063]
[1739132725112,26.1972392,199.93,199.92,0.063]
[1739132725415,34.66282853,199.89,199.88,0.063]
[1739132725613,82.58254451,199.89,199.88,0.063]
[1739132725802,83.58254451,199.89,199.88,0.063]
[1739132726204,10.66025174,199.89,199.88,0.063]
[1739132726499,9.72172856,199.89,199.88,0.063]
[1739132727214,90.72172856,199.89,199.88,0.063]
[1739132729515,109.13627709,199.89,199.88,0.063]
[1739132729690,147.52123133,199.89,199.88,0.063]
[1739132729896,149.52123133,199.89,199.88,0.063]
[1739132730910,15.53733853,199.88,199.87,0.063]
[1739132731115,26.07220496,199.88,199.87,0.063]
[1739132732221,13.53733853,199.84,199.83,0.063]
[1739132732425,24.07225826,199.84,199.83,0.063]
[1739132733125,29.07625826,199.84,199.83,0.063]
[1739132734305,24.07225826,199.84,199.83,0.063]
[1739132736121,29.07625826,199.84,199.83,0.063]
[1739132742910,30.07625826,199.84,199.83,0.063]
[1739132743211,31.07625826,199.84,199.83,0.063]
[1739132744728,24.07225826,199.84,199.83,0.063]
[1739132747534,24.19774826,199.84,199.83,0.063]
[1739132748305,10.53491973,199.84,199.83,0.063]
[1739132748510,38.41495424,199.89,199.83,0.063]
[1739132748511,9.59623856,199.87,199.83,0.063]
[1739132751521,9.59623856,199.86,199.83,0.063]
[1739132756642,9.59623856,199.85,199.83,0.063]
[1739132759942,9.59623856,199.86,199.83,0.063]
[1739132762249,9.59623856,199.85,199.83,0.063]
[1739132764635,9.59623856,199.86,199.83,0.063]
[1739132766239,9.59623856,199.84,199.83,0.063]
[1739132768145,9.59623856,199.85,199.83,0.063]
[1739132770050,9.59623856,199.87,199.83,0.063]
[1739132770255,81.0,199.88,199.83,0.063]
[1739132771138,0.03,199.89,199.86,9.59623856]
[1739132771341,0.03,199.87,199.85,9.59623856]
[1739132771536,0.03,199.87,199.86,9.59623856]
[1739132773144,0.03,199.87,199.86,13.27623856]
[1739132775732,0.03,199.87,199.86,14.51561148]
[1739132776263,0.03,199.87,199.86,28.05295001]
[1739132777358,0.03,199.87,199.86,67.56339425]
[1739132777857,0.03,199.89,199.88,0.12549]
[1739132778062,0.03,199.97,199.91,20.0]
[1739132778258,0.03,199.97,199.96,9.59623856]
[1739132780163,0.03,199.97,199.95,10.86048856]
[1739132780338,0.03,199.97,199.94,9.59623856]
[1739132780659,0.03,199.97,199.96,20.0]
[1739132781734,0.03,199.97,199.96,9.59623856]
[1739132783263,0.03,199.97,199.96,23.00808709]
[1739132783451,0.03,199.97,199.96,23.13357709]
[1739132784543,0.03,199.97,199.96,9.59623856]
[1739132785556,0.03,199.97,199.96,23.00808709]
[1739132788343,0.03,199.97,199.96,61.51853133]
[1739132788548,0.03,199.97,199.96,93.64402133]
[1739132788738,0.03,199.97,199.96,92.64402133]
[1739132789873,0.03,199.97,199.96,23.00808709]
[1739132790274,0.03,199.97,199.96,26.68808709]
[1739132790644,0.03,199.97,199.96,13.27623856]
[1739132790844,0.03,199.97,199.95,29.59623856]
[1739132791353,0.03,199.97,199.92,83.1215]
[1739132791556,9.59623856,199.94,199.89,0.063]
[1739132791746,15.01468091,199.95,199.89,0.063]
[1739132792343,15.01468091,199.95,199.91,20.0]
[1739132793364,15.01468091,199.96,199.92,20.0]
[1739132793547,15.04468091,199.97,199.93,20.0]
[1739132794561,0.03,199.97,199.93,20.0]
[1739132794868,0.03,199.97,199.93,15.01468091]
[1739132796847,0.03,199.97,199.95,20.0]
[1739132797051,0.03,199.97,199.93,20.0]
[1739132797052,15.04468091,199.97,199.93,20.0]
[1739132797974,15.04468091,199.97,199.92,20.0]
[1739132799867,15.04468091,199.97,199.93,20.0]
[1739132802680,0.03,199.97,199.94,20.0]
[1739132803364,0.03,199.97,199.92,15.01468091]
[1739132806478,0.03,199.97,199.94,15.01468091]
[1739132808678,0.03,199.97,199.89,35.07768091]
[1739132808679,0.03,199.97,199.92,15.01468091]
[1739132808989,0.03,199.97,199.94,20.0]
[1739132813084,0.03,199.97,199.92,15.01468091]
[1739132813262,0.03,199.97,199.93,15.01468091]
[1739132813654,0.03,199.97,199.93,9.60349827]
[1739132817095,0.03,199.97,199.92,9.60349827]
[1739132819588,0.03,199.97,199.93,9.60349827]
[1739132823187,0.03,199.97,199.96,9.60349827]
[1739132827612,0.03,199.97,199.96,10.87562104]
[1739132828295,0.03,199.97,199.96,9.60349827]
[1739132835198,0.03,199.97,199.96,23.0153468]
[1739132835407,0.03,200.04,200.03,20.0]
[1739132842819,0.03,200.04,200.03,9.60349827]
[1739132846889,0.03,200.06,200.04,20.12549]
[1739132847089,0.03,200.17,200.09,20.0]
[1739132847405,0.03,200.17,200.13,9.60349827]
[1739132847712,0.03,200.17,200.12,9.60349827]
[1739132848312,0.03,200.17,200.11,9.60349827]
[1739132848531,0.03,200.17,200.15,20.0]
[1739132850022,0.03,200.17,200.15,9.60349827]
[1739132850524,0.03,200.17,200.11,23.68]
[1739132850525,0.03,200.17,200.16,9.60349827]
[1739132851330,0.03,200.17,200.16,61.68031988]
[1739132852317,0.03,200.17,200.16,23.0153468]
[1739132852707,0.03,200.17,200.16,26.6953468]
[1739132853825,0.03,200.17,200.16,13.28349827]
[1739132854029,0.03,200.17,200.16,3.68]
[1739132854626,0.03,200.17,200.16,33.28349827]
[1739132855823,0.03,200.17,200.16,46.6953468]
[1739132856124,0.03,200.17,200.16,46.8208368]
[1739132857231,0.03,200.17,200.16,85.23482988]
[1739132857409,0.03,200.17,200.16,115.36031988]
[1739132858931,0.03,200.17,200.16,116.36031988]
[1739132862810,0.03,200.17,200.16,198.26031988]
[1739132865048,0.03,200.17,200.16,197.26031988]
[1739132867430,0.03,200.17,200.16,115.43447827]
[1739132869336,0.03,200.17,200.16,91.50349827]
[1739132874625,0.03,200.17,200.16,9.60349827]
[1739132880438,0.03,200.17,200.13,3.68]
[1739132880644,0.03,200.17,200.11,9.60349827]
[1739132881142,9.63349827,200.17,200.13,20.0]
[1739132881332,0.03,200.17,200.14,20.0]
[1739132882621,0.03,200.17,200.12,29.60349827]
[1739132882826,0.03,200.17,200.15,9.60349827]
[1739132883153,0.03,200.17,200.16,9.60349827]
[1739132885848,0.03,200.19,200.18,20.0]
[1739132886068,0.03,200.19,200.18,29.60349827]
[1739132887931,0.03,200.19,200.17,9.60349827]
[1739132888568,0.03,200.19,200.18,9.60349827]
[1739132894568,0.03,200.19,200.18,9.72898827]
[1739132895060,0.03,200.19,200.18,23.1408368]
[1739132897741,0.03,200.25,200.21,20.0]
[1739132898059,0.03,200.25,200.24,9.60349827]
[1739132899260,0.03,200.25,200.24,48.01749135]
[1739132899778,0.03,200.25,200.24,9.60349827]
[1739132900859,0.03,200.4,200.28,20.12549]
[1739132901069,0.03,200.4,200.35,9.60349827]
[1739132901242,9.63349827,200.4,200.33,9.60349827]
[1739132901565,9.63349827,200.4,200.32,9.60349827]
[1739132902155,9.60349827,200.37,200.33,20.0]
[1739132902359,9.60349827,200.36,200.33,20.0]
[1739132903171,9.60349827,200.36,200.32,20.0]
[1739132903760,9.60349827,200.39,200.33,20.0]
[1739132903961,9.60349827,200.39,200.32,9.60349827]
[1739132906975,90.63349827,200.4,200.33,9.60349827]
[1739132907554,9.63349827,200.38,200.32,9.60349827]
[1739132908448,9.60349827,200.37,200.3,9.60349827]
[1739132908653,9.40349827,200.34,200.27,9.60349827]
[1739132908867,9.60349827,200.34,200.24,31.63184853]
[1739132909070,9.60349827,200.34,200.27,29.60349827]
[1739132909680,9.60349827,200.35,200.28,9.60349827]
[1739132910781,9.60349827,200.36,200.29,9.60349827]
[1739132912655,9.60349827,200.37,200.3,9.60349827]
[1739132912858,9.63349827,200.38,200.31,9.60349827]
[1739132913282,9.60349827,200.36,200.32,20.0]
[1739132913596,9.60349827,200.35,200.32,20.0]
[1739132914082,9.60349827,200.35,200.28,9.60349827]
[1739132914255,9.63349827,200.35,200.28,9.60349827]
[1739132914981,0.03,200.35,200.29,9.60349827]
[1739132915980,0.03,200.35,200.31,9.60349827]
[1739132916278,0.03,200.35,200.25,58.41399308]
[1739132916279,0.03,200.35,200.32,9.60349827]
[1739132917193,0.03,200.35,200.33,9.60349827]
[1739132917395,0.03,200.35,200.34,9.60349827]
[1739132918789,0.03,200.35,200.33,9.60349827]
[1739132921498,0.03,200.35,200.32,9.60349827]
[1739132926881,0.03,200.35,200.34,20.0]
[1739132928099,0.03,200.35,200.33,9.60349827]
[1739132932396,0.03,200.35,200.29,9.60349827]
[1739132932600,0.03,200.35,200.28,0.063]
[1739132932601,9.60349827,200.34,200.28,0.063]
[1739132933384,0.03,200.35,200.29,9.60349827]
[1739132934302,0.03,200.35,200.3,9.60349827]
[1739132936213,0.03,200.35,200.33,20.0]
[1739132936401,0.03,200.38,200.37,20.0]
[1739132936710,9.60349827,200.51,200.42,20.0]
[1739132936886,9.60349827,200.52,200.45,9.60349827]
[1739132937089,0.93567012,200.54,200.45,9.60349827]
[1739132937414,9.60349827,200.53,200.46,9.60349827]
[1739132937579,9.10349827,200.52,200.45,9.60349827]
[1739132937781,9.60349827,200.53,200.46,9.60349827]
[1739132937978,9.60349827,200.52,200.45,9.60349827]
[1739132938204,9.60349827,200.53,200.46,9.60349827]
[1739132938588,1.96529354,200.56,200.4,1.25112213]
[1739132938589,9.60349827,200.52,200.45,9.60349827]
[1739132938790,1.96529354,200.56,200.37,88.70827964]
[1739132938791,0.96529354,200.56,200.54,20.0]
[1739132938999,0.03,200.56,200.54,29.60349827]
[1739132939204,0.03,200.56,200.55,9.60349827]
[1739132940595,0.03,200.56,200.54,9.60349827]
[1739132941499,0.03,200.56,200.55,20.0]
[1739132941706,0.03,200.56,200.55,29.60349827]
[1739132942315,0.03,200.56,200.55,32.96281987]
[1739132942488,9.60349827,200.64,200.56,9.60349827]
[1739132942889,9.60349827,200.64,200.55,23.3593216]
[1739132943085,9.60349827,200.64,200.57,9.60349827]
[1739132943623,14.91040815,200.64,200.57,14.91040815]
[1739132944604,14.91040815,200.66,200.59,34.91040815]
[1739132945315,0.12549,200.66,200.59,34.91040815]
[1739132945917,14.91040815,200.68,200.61,14.91040815]
[1739132946418,14.91040815,200.68,200.59,20.0]
[1739132946419,14.91040815,200.67,200.6,14.91040815]
[1739132946712,14.91040815,200.65,200.61,20.0]
[1739132948306,14.91040815,200.66,200.59,14.91040815]
[1739132949322,14.91040815,200.61,200.56,7.60235036]
[1739132950197,0.12549,200.64,200.59,14.91040815]
[1739132950515,19.89390815,200.66,200.59,14.91040815]
[1739132950724,14.91040815,200.65,200.58,14.91040815]
[1739132951206,14.91040815,200.65,200.55,0.063]
[1739132951207,0.03,200.65,200.6,14.91040815]
[1739132952021,0.03,200.65,200.59,14.91040815]
[1739132952236,0.03,200.65,200.61,14.91040815]
[1739132952524,0.03,200.65,200.59,14.91040815]
[1739132952823,0.03,200.65,200.62,20.0]
[1739132953120,0.03,200.65,200.64,14.91040815]
[1739132953818,0.03,200.65,200.63,14.91040815]
[1739132954023,0.03,200.65,200.62,14.91040815]
[1739132954406,14.91040815,200.69,200.62,14.91040815]
[1739132955917,14.91040815,200.68,200.6,14.91040815]
[1739132956227,14.91040815,200.65,200.58,14.91040815]
[1739132956524,14.91040815,200.65,200.57,14.91040815]
[1739132956719,14.91040815,200.63,200.56,14.91040815]
[1739132957616,14.91040815,200.67,200.6,14.91040815]
[1739132957820,14.91040815,200.65,200.58,14.91040815]
[1739132958028,15.84516067,200.64,200.56,34.91040815]
[1739132958398,14.91040815,200.63,200.56,34.91040815]
[1739132958904,14.91040815,200.61,200.55,0.063]
[1739132959500,14.91040815,200.62,200.55,14.97340815]
[1739132960625,19.89490815,200.62,200.55,0.063]
[1739132960826,5.91914407,200.63,200.56,14.91040815]
[1739132960999,20.82955222,200.63,200.56,14.91040815]
[1739132961420,14.91040815,200.62,200.55,14.97340815]
[1739132962225,14.91040815,200.61,200.55,0.063]
[1739132963638,9.5480072,200.57,200.55,0.063]
[1739132964626,14.5338072,200.57,200.55,0.063]
[1739132965515,9.5480072,200.58,200.55,0.063]
[1739132966626,9.5480072,200.56,200.55,0.063]
[1739132967313,9.5480072,200.57,200.55,0.063]
[1739132967630,0.12549,200.57,200.55,0.063]
[1739132968643,5.11139,200.57,200.55,0.063]
[1739132969134,4.984,200.64,200.55,0.063]
[1739132969340,14.5320072,200.64,200.56,9.90015567]
[1739132969543,9.5480072,200.62,200.56,0.35214847]
[1739132969707,9.5480072,200.61,200.55,0.063]
[1739132969913,9.5480072,200.6,200.55,0.063]
[1739132970810,9.5480072,200.6,200.55,0.41514847]
[1739132971339,14.5329072,200.61,200.55,0.41514847]
[1739132971720,19.90150763,200.61,200.55,0.41514847]
[1739132972840,14.91660763,200.62,200.57,0.35214847]
[1739132973043,14.91660763,200.62,200.55,0.41514847]
[1739132973425,0.12549,200.61,200.55,0.41514847]
[1739132973723,15.04209763,200.61,200.55,0.41514847]
[1739132976243,0.12549,200.61,200.55,0.41514847]
[1739132977042,14.91660763,200.63,200.57,0.35214847]
[1739132977421,0.03,200.61,200.57,0.35214847]
[1739132977830,14.91660763,200.62,200.57,0.35214847]
[1739132979040,14.91660763,200.61,200.55,0.41514847]
[1739132979220,14.91660763,200.61,200.55,0.063]
[1739132979723,14.91660763,200.6,200.55,0.063]
[1739132979913,14.91660763,200.59,200.55,0.063]
[1739132980848,19.90190763,200.59,200.55,0.063]
[1739132981032,14.91660763,200.58,200.55,0.063]
[1739132984661,14.91660763,200.57,200.55,0.063]
[1739132984827,1.25098,200.62,200.55,0.063]
[1739132984828,14.91660763,200.56,200.55,0.063]
[1739132985530,19.90260763,200.56,200.55,0.063]
[1739132993758,14.5386345,200.56,200.55,0.063]
[1739133000570,14.7896145,200.56,200.55,0.063]
[1739133000941,15.7896145,200.56,200.55,0.063]
[1739133003707,0.25098,200.52,200.43,0.35214847]
[1739133003844,9.5526345,200.48,200.43,0.35214847]
[1739133004173,9.5526345,200.48,200.41,0.35214847]
[1739133004345,9.5526345,200.48,200.43,20.0]
[1739133004545,9.5526345,200.48,200.41,0.35214847]
[1739133005166,9.5526345,200.48,200.41,29.90478297]
[1739133006975,4.9882,200.47,200.41,29.90478297]
[1739133008582,12.71878,200.52,200.43,9.90478297]
[1739133008583,9.5526345,200.5,200.43,9.90478297]
[1739133009776,14.5403345,200.49,200.42,9.5526345]
[1739133010181,9.5526345,200.48,200.41,20.35214847]
[1739133010375,9.5526345,200.47,200.41,0.35214847]
[1739133010568,9.5526345,200.48,200.41,9.90478297]
[1739133011479,52.57706953,200.52,200.41,0.35214847]
[1739133011480,9.5526345,200.47,200.41,0.35214847]
[1739133011863,9.5526345,200.48,200.45,0.35214847]
[1739133012166,9.5526345,200.5,200.45,0.35214847]
[1739133012873,9.5526345,200.5,200.43,9.90478297]
[1739133013182,9.5526345,200.5,200.45,0.35214847]
[1739133013483,14.5402345,200.5,200.45,0.35214847]
[1739133013779,14.5402345,200.5,200.43,0.35214847]
[1739133014188,9.5526345,200.49,200.43,0.35214847]
[1739133014370,9.5526345,200.48,200.41,29.96778297]
[1739133015081,9.5526345,200.48,200.41,20.41514847]
[1739133015579,9.5526345,200.43,200.41,0.063]
[1739133015768,9.5526345,200.42,200.41,0.063]
[1739133017272,9.8036145,200.42,200.41,0.063]
[1739133017570,14.7931145,200.42,200.41,0.063]
[1739133021179,15.44096603,200.42,200.41,0.063]
[1739133024295,4.9885,200.46,200.41,0.063]
[1739133024467,4.9885,200.46,200.41,9.6156345]
[1739133024669,0.25098,200.45,200.41,0.063]
[1739133024978,9.8036145,200.45,200.41,0.063]
[1739133025282,4.9885,200.46,200.41,0.063]
[1739133025664,4.9885,200.46,200.41,9.6156345]
[1739133026168,4.9885,200.46,200.41,0.063]
[1739133027478,14.5411345,200.46,200.41,0.063]
[1739133027779,9.5526345,200.45,200.41,0.063]
[1739133028102,0.25098,200.45,200.41,0.063]
[1739133028286,9.8036145,200.45,200.41,0.063]
[1739133028787,9.5526345,200.44,200.41,0.063]
[1739133029191,14.7924145,200.45,200.41,0.063]
[1739133029389,5.23978,200.45,200.41,0.063]
[1739133029888,9.5526345,200.46,200.41,0.063]
[1739133030081,9.5526345,200.47,200.41,0.063]
[1739133030688,9.5526345,200.46,200.41,0.063]
[1739133030990,0.25098,200.45,200.41,0.063]
[1739133031203,9.5526345,200.43,200.41,0.063]
[1739133031374,4.9895,200.42,200.41,0.063]
[1739133031697,28.85281456,200.42,200.41,0.063]
[1739133031903,29.85281456,200.42,200.41,0.063]
[1739133033682,35.24987614,200.42,200.41,0.063]
[1739133036385,35.24987614,200.42,200.41,0.0001]
[1739133038516,1.25098,200.35,200.34,0.063]
[1739133038713,16.20067608,200.35,200.34,0.063]
[1739133039594,21.19187608,200.35,200.34,0.063]
[1739133041299,19.94089608,200.35,200.34,0.063]
[1739133044996,20.83972761,200.35,200.3,0.063]
[1739133045205,15.20067608,200.31,200.3,0.063]
[1739133046109,14.94969608,200.31,200.3,0.063]
[1739133046307,19.94189608,200.31,200.3,0.063]
[1739133048024,14.94969608,200.31,200.3,0.063]
[1739133048218,19.94059608,200.37,200.3,15.36484455]
[1739133048600,14.94969608,200.36,200.3,0.41514847]
[1739133049002,14.94969608,200.37,200.32,0.35214847]
[1739133049621,14.94969608,200.37,200.34,0.063]
[1739133049803,0.03,200.35,200.34,0.063]
[1739133051324,20.22187608,200.35,200.34,0.063]
[1739133054731,35.17157216,200.35,200.34,0.063]
[1739133055729,20.22187608,200.35,200.34,0.063]
[1739133057648,0.03,200.35,200.34,0.063]
[1739133057804,0.03,200.35,200.34,29.96239216]
[1739133058006,19.93739608,200.49,200.41,14.94969608]
[1739133058228,19.93739608,200.49,200.41,15.30184455]
[1739133058431,14.94969608,200.49,200.41,15.30184455]
[1739133058631,19.93739608,200.49,200.44,0.35214847]
[1739133058936,19.93739608,200.49,200.41,14.94969608]
[1739133058937,14.94969608,200.49,200.42,0.35214847]
[1739133060110,15.20067608,200.51,200.44,0.35214847]
[1739133060308,0.25098,200.51,200.44,15.30184455]
[1739133060522,0.03,200.55,200.49,14.94969608]
[1739133060727,0.03,200.55,200.5,15.30184455]
[1739133060936,0.03,200.55,200.54,14.94969608]
[1739133061637,0.03,200.55,200.53,0.35214847]
[1739133061823,0.03,200.55,200.46,13.41184853]
[1739133061824,0.03,200.55,200.51,0.35214847]
[1739133062022,0.03,200.55,200.51,20.35214847]
[1739133062339,0.03,200.55,200.53,15.30184455]